Cogmind - Beta 14 @@@ ROGUE MODE // 2024.08.17 @ 01:24:15 Player: Nalzok Result: Destroyed by Z3-3UW(R) with Subdweller Machine Gun Performance ------------- Evolutions (0) 0 Regions Visited (2) 400 Robots Destroyed (21) 105 Value Destroyed (560) 560 Prototype IDs (0) 0 Alien Tech Used (0) 0 Bonus (0) 0 TOTAL SCORE: 1065 Bonus ------- None Cogmind --------- Core Integrity 0/250 Matter 300/300 Energy 261/265 System Corruption 0% Temperature Cool (2) Movement Walking (190) Ox1 Location -10/Subcaves Parts ------- > --- POWER (1) -------- Improved Ion Engine > --- PROPULSION (2) --- Aluminum Leg Aluminum Leg > --- UTILITY (2) ------ Small Storage Unit Seismic Detector > --- WEAPON (2) ------- Beam Cannon Subdweller Beam Cannon > --- INVENTORY (8) ---- Aluminum Leg Aluminum Leg Improved Heat Sink High-capacity Storage Unit Hacking Suite Beam Cannon Grenade Launcher Makeshift Sword Peak State ------------ > --- POWER ------------ Improved Ion Engine > --- PROPULSION ------- Aluminum Leg Aluminum Leg > --- UTILITY ---------- Small Storage Unit Seismic Detector > --- WEAPON ----------- Beam Cannon Makeshift Sword > --- INVENTORY -------- Aluminum Leg Aluminum Leg Improved Heat Sink High-capacity Storage Unit Hacking Suite Beam Cannon Subdweller Beam Cannon Grenade Launcher [Rating: 12] Favorites ----------- Power Improved Ion Engine Engine Improved Ion Engine Power Core Light Nuclear Core Propulsion Aluminum Leg Leg Aluminum Leg Utility Small Storage Unit Device Seismic Detector Storage Small Storage Unit Weapon Beam Cannon Energy Cannon Beam Cannon Ballistic Gun Light Assault Rifle Slashing Weapon Makeshift Sword Build | -11 -10 -10 ------- Run | Yrd Mat Sub Slots Evolved . | . . . Power . | . . . Propulsion . | . . . Utility . | . . . Weapon . | . . . Parts Attached 25 | . 16 9 Power 7 | . 6 1 Engine 5 | . 4 1 Core 2 | . 2 . Reactor . | . . . Propulsion 7 | . 5 2 Treads . | . . . Leg 7 | . 5 2 Wheel . | . . . Hover . | . . . Flight . | . . . Utility 4 | . 3 1 Device 3 | . 2 1 Storage 1 | . 1 . Processor . | . . . Hackware . | . . . Protection . | . . . Artifact . | . . . Weapon 7 | . 2 5 Energy Gun . | . . . Energy Cannon 6 | . 2 4 Ballistic Gun . | . . . Ballistic Cannon . | . . . Launcher . | . . . Special Weapon . | . . . Impact Weapon . | . . . Slashing Weapon 1 | . . 1 Piercing Weapon . | . . . Special Melee Weapon . | . . . Unidentified Prototypes . | . . . Parts Lost 7 | . 4 3 Power 3 | . 2 1 Propulsion 1 | . . 1 Utility 2 | . 1 1 Weapon 1 | . 1 . Highest Loss Streak 3 | . 1 3 To Critical Strikes . | . . . Average Slot Usage (%) 96 | . 96 98 Engine 10 | . 9 13 Core 2 | . 4 . Leg 27 | . 28 27 Device 9 | . 7 13 Storage 16 | . 18 14 Energy Cannon 13 | . 10 21 Ballistic Gun 11 | . 17 . Slashing Weapon 2 | . . 6 Peak Build Rating 12 | 6 11 12 Average Rating 9 | 6 8 10 On Entrance 7 | 6 6 11 Naked Turns . | . . . Heaviest Build 24 | 10 19 24 Greatest Support 20 | 20 20 20 Greatest Overweight (x) 1 | . . 1 Average Overweight (x) . | . . . Largest Inventory Capacity 8 | 8 8 8 Average Capacity 8 | 8 8 8 Most Carried 8 | 5 8 8 Average Carried 7 | 4 7 7 Final Capacity 8 | 8 8 8 Final Carried 8 | 2 8 8 Class Distribution -------------------- 92% | Mutant 7% | Scavenger-Mutant Dominant Class ---------------- Mutant | -10/Materials Mutant | -10/Subcaves Resources | -11 -10 -10 ----------- Run | Yrd Mat Sub Matter Collected 750 | 175 485 90 Remotely . | . . . Salvage Created 822 | . 692 130 Parts 42 | . 36 6 Haulers Intercepted 1 | . 1 . Recyclers Shooed 3 | . 3 . Parts Field Recycled . | . . . Retrieved Matter . | . . . Parts Self-Destructed . | . . . Prevented . | . . . Kills | -11 -10 -10 ------- Run | Yrd Mat Sub Combat Hostiles Destroyed 16 | . 13 3 Guns 10 | . 10 . Cannons 6 | . 3 3 Classes Destroyed 7 | . 6 1 Worker 1 | . 1 . Hauler 1 | . 1 . Recycler 2 | . 2 . Operator 1 | . 1 . Swarmer 3 | . 3 . Grunt 10 | . 10 . Subdweller 3 | . . 3 Best Kill Streak 3 | . 3 1 Combat Bots Only 3 | . 3 1 Max Kills in Single Turn 1 | . 1 1 Gunslinging . | . . . Exploded . | . . . Melee . | . . . Uniques/NPCs Destroyed . | . . . Combat | -11 -10 -10 -------- Run | Yrd Mat Sub Hostile Shots Fired 95 | . 76 19 Missed 33 | . 28 5 Damage Taken 1154 | . 553 601 Core 264 | . 84 180 Absorbed by Shields . | . . . Core Remaining (%) 100 | 100 . . Volleys Fired 84 | . 67 17 Largest 2 | . 2 2 Hottest 140 | . 120 140 Shots Fired 167 | . 133 34 Gun 117 | . 117 . Cannon 50 | . 16 34 Launcher . | . . . Special . | . . . Kinetic 117 | . 117 . Thermal 50 | . 16 34 Explosive . | . . . Electromagnetic . | . . . Robot Hit Streak 16 | . 16 8 Robot Miss Streak 4 | . 4 2 Penetration Max . | . . . Secondary Targets . | . . . Shots Hit Robots 103 | . 78 25 Core Hits 46 | . 41 5 Critical Kills 1 | . 1 . Critical Parts Destroyed . | . . . Critical Strikes 1 | . 1 . Destroy 1 | . 1 . Melee Attacks 6 | . . 6 Impact . | . . . Slashing 6 | . . 6 Piercing . | . . . Sneak Attacks . | . . . Combat Hostiles . | . . . Follow-up Attacks . | . . . Damage Inflicted 1228 | . 798 430 Guns 642 | . 642 . Cannons 586 | . 156 430 Explosions . | . . . Melee . | . . . Ramming . | . . . Kinetic 642 | . 642 . Thermal 586 | . 156 430 Explosive . | . . . Electromagnetic . | . . . Impact . | . . . Slashing . | . . . Piercing . | . . . Highest Corruption . | . . . Average Corruption . | . . . Corruption Purged . | . . . Corruption Blocked . | . . . Overload Shots . | . . . Overflow Damage . | . . . Projectiles . | . . . Explosions . | . . . Melee . | . . . Knockbacks . | . . . Impact . | . . . Kinetic . | . . . Secondary . | . . . Self-Inflicted Damage . | . . . Shots . | . . . Rammed . | . . . Targets Rammed . | . . . Kicked . | . . . Crushed . | . . . Highest Temperature 66 | . 66 21 Average Temperature 10 | . 10 9 Received Heat Transfer 369 | . 303 66 Siege Activations . | . . . Robots Corrupted . | . . . Combat Hostiles . | . . . Parts Fried . | . . . Impact Corruptions . | . . . Robots Melted . | . . . Combat Hostiles . | . . . Parts Melted 1 | . 1 . Heat Transferred 1221 | . 333 888 Parts Sabotaged . | . . . Parts Stolen . | . . . Parts Stripped . | . . . Power Chain Reactions . | . . . Alert | -11 -10 -10 ------- Run | Yrd Mat Sub Peak Influence 141 | . 141 . Initial . | . . . Average 32 | . 32 . Maximum Alert Level . | . . . Low Security (%) 100 | 100 100 . Level 1 . | . . . Level 2 . | . . . Level 3 . | . . . Level 4 . | . . . Level 5 . | . . . High Security . | . . . Max Security . | . . . Squads Dispatched 3 | . 3 . Investigation 1 | . 1 . Extermination . | . . . Reinforcement 2 | . 2 . Assault . | . . . Garrison . | . . . Intercept . | . . . Searches Triggered . | . . . Construction Impeded . | . . . Haulers Reinforced . | . . . Active Scanning Responses . | . . . Cargo Convoy Interrupts . | . . . Stealth | -11 -10 -10 --------- Run | Yrd Mat Sub Distress Signals 4 | . 4 . Communications Jammed . | . . . Distress Signals . | . . . Times Spotted 36 | . 30 6 Peak Tracking Total 5 | . 5 2 Tactical Retreats 2 | . 2 . Traps | -11 -10 -10 ------- Run | Yrd Mat Sub Traps Triggered 4 | . 1 3 Indirectly . | . . . Trap Hack Attempts . | . . . Triggered . | . . . Disarmed . | . . . Reprogrammed . | . . . Reused . | . . . Traps Extracted . | . . . Installed . | . . . Triggered . | . . . Machines | -11 -10 -10 ---------- Run | Yrd Mat Sub Machines Disabled . | . . . Max in Single Turn . | . . . Machines Repaired . | . . . Machines Dismantled . | . . . Machines Sabotaged . | . . . Overloaded Fab Kills . | . . . Hacking | -11 -10 -10 --------- Run | Yrd Mat Sub Machines Accessed 7 | . 7 . Terminals 7 | . 7 . Fabricators . | . . . Repair Stations . | . . . Recycling Units . | . . . Scanalyzers . | . . . Garrison Access . | . . . Total Hacks 27 | . 27 . Successful 17 | . 17 . Failed 10 | . 10 . Catastrophic . | . . . Database Lockouts . | . . . Manual 24 | . 24 . Terminals 27 | . 27 . Fabricators . | . . . Repair Stations . | . . . Recycling Units . | . . . Scanalyzers . | . . . Garrison Access . | . . . Terminal Hacks 5 | . 5 . Part Schematic 1 | . 1 . Terminal Index 1 | . 1 . Unreport Threat 3 | . 3 . Fabricator Hacks . | . . . Repair Station Hacks . | . . . Recycling Unit Hacks . | . . . Scanalyzer . | . . . Garrison Access Hacks . | . . . Unauthorized Hacks 12 | . 12 . Terminals 12 | . 12 . Botnet 4 | . 4 . Operators 1 | . 1 . Skim 7 | . 7 . Fabricators . | . . . Repair Stations . | . . . Recycling Units . | . . . Scanalyzers . | . . . Garrison Access . | . . . Data Cores Recovered . | . . . Used . | . . . Hacking Detections 7 | . 7 . Full Trace Events . | . . . Feedback Events . | . . . Feedback Blocked . | . . . Robot Schematics Acquired . | . . . Robots Built . | . . . Authchips . | . . . Time . | . . . Total Robot Build Rating . | . . . Part Schematics Acquired 1 | . 1 . Parts Built . | . . . Authchips . | . . . Time . | . . . Total Part Build Rating . | . . . Parts Repaired . | . . . Time . | . . . Parts Recycled . | . . . Recycled Matter . | . . . Retrieved Matter . | . . . Retrieved Components . | . . . Parts Scanalyzed . | . . . Part Schematics Acquired . | . . . Parts Damaged . | . . . Bothacking | -11 -10 -10 ------------ Run | Yrd Mat Sub Used RIF Installer . | . . . Robots Hacked . | . . . Non-combat . | . . . Combat . | . . . Robot Hacks Applied . | . . . Relay Couplers Released . | . . . Fabnet Peak Effective % . | . . . Robots Rewired . | . . . Allies Hacked . | . . . Hacks Repelled . | . . . Allies | -11 -10 -10 -------- Run | Yrd Mat Sub Total Allies . | . . . Largest Group . | . . . Highest-Rated Group . | . . . Highest-Rated Ally . | . . . Total Orders . | . . . Ally Attacks . | . . . Total Damage . | . . . Kills . | . . . Allies Corrupted . | . . . Allies Melted . | . . . Intel | -11 -10 -10 ------- Run | Yrd Mat Sub Robot Analysis Total . | . . . Derelict Logs Recovered 1 | . . 1 Drone Launches . | . . . Drone Recoveries . | . . . Exploration | -11 -10 -10 ------------- Run | Yrd Mat Sub Turns Passed 1644 | 2 1109 533 Spaces Moved 1002 | 1 642 359 Core . | . . . Treads . | . . . Legs 1002 | 1 642 359 Wheels . | . . . Hover . | . . . Flight . | . . . Fastest Speed 120 | 120 120 120 Average Speed 120 | 120 120 121 Slowest Speed 190 | 120 120 190 Overloaded Moves . | . . . Propulsion Burnouts . | . . . Robots Hopped . | . . . Cave-ins Triggered . | . . . Exploration Rate (%) 38 | 2 89 24 Regions Visited 2 Branch Regions 1 Pre-discovered Areas 1 | . . 1 Known Exits Taken 1 | . 1 . Unknown Exits Taken 1 | 1 . . Scrap Searched 1 | . . 1 Spaces Dug 5 | . . 5 Terrain Destroyed 5 | . . 5 Melee 5 | . . 5 Projectile . | . . . AOE . | . . . Terrain Rammed . | . . . Walls Destroyed . | . . . Machines Disabled . | . . . Actions | -11 -10 -10 --------- Run | Yrd Mat Sub Total 1292 | 4 877 411 Wait 135 | . 117 18 Move 1000 | . 641 359 Hop . | . . . Pick Up 19 | . 18 1 Fast Attach 5 | . 5 . Attach 7 | . 3 4 Detach 1 | . . 1 Swap 13 | . 8 5 Drop 22 | 4 18 . Fire 84 | . 67 17 Melee 6 | . . 6 Ram . | . . . Kick . | . . . Crush . | . . . Escape Stasis . | . . . Rewire . | . . . Trap . | . . . Miscellaneous . | . . . Route ------- -11/Scrapyard -10/Materials (discovered 5 exits: [*Mat x3] / [*Min] / *Sub) -10/Subcaves (discovered 1 exit: Rec) History --------- Turn | Location | Event 3 | -11/Scrapyard | Discovered new exit (range 0) 3 | -11/Scrapyard | Entered Materials 61 | -10/Materials | Discovered new exit (range 16) 315 | -10/Materials | Build established: Mutant 492 | -10/Materials | Discovered new exit (range 7) 660 | -10/Materials | Discovered new exit (range 3) 813 | -10/Materials | Discovered new exit (range 16) 956 | -10/Materials | Learned 4 Recycling zone layouts 1012 | -10/Materials | Identified exit to Subcaves 1091 | -10/Materials | Learned 4 Subcaves zone layouts 1112 | -10/Materials | Entered Subcaves 1113 | -10/Subcaves | Identified exit to Recycling 1131 | -10/Subcaves | Core integrity fell below 50% 1151 | -10/Subcaves | Ambushed by Subdweller buried in earth 1153 | -10/Subcaves | Learned location of Zion (-6) 1153 | -10/Subcaves | Met a Zionite searching for "candidates" 1170 | -10/Subcaves | Core integrity fell below 20% 1186 | -10/Subcaves | Shifting Twisted Machinery released Mak. Sword 1192 | -10/Subcaves | Lost 3 parts (1p1n1u) 1209 | -10/Subcaves | Shifting Twisted Machinery released Flamer 1645 | -10/Subcaves | Destroyed by Z3-3UW(R) with Subdweller Machine Gun Last Messages --------------- 01217_ Spikes shoot up from the floor. 01274_ LE-O49(u) tweaks Twisted Machinery. 01381_ JP-8O0(u) builds Twisted Machinery. 01490_ LE-O49(u) tweaks Twisted Machinery. 01560_ Acquired 4 matter. 01570_ Triggered Piercing Trap. 01570_ Spikes shoot up from the floor. 01570_ Critical hit (Impale). 01575_ Triggered Piercing Trap. 01575_ Spikes shoot up from the floor. 01575_ Critical hit (Impale). 01617_ Searching scrap... 01617_ Found Sub. Monowheel. 01617_ Found 61 Matter. 01618_ Acquired 16 matter. 01623_ Subatomizers dissect the Sub. Monowheel. 01634_ 5J-LKZ(R) destroyed. 01637_ Acquired 20 matter. TS-MTU(R) emerges from concealment. 01638_ Subatomizers dissect the Sub. Monowheel. Map ----- +----------------------------------------------------+ | ??# ## #???????# #???????? | | ??# # #####??????## ##???????? | | ??# # # ##??????# #????????? | | ?# ## #??????## #????????? | | #### ^ ##???????# ##???????? | | #??### ^ #????????## ##??????? | | ####??# ##?????????## ##?????? | | ### # ## #### ###???????????## ###???? | | ? #### ##??????????????## #???? | | ?? # #####???????????# #???? | | ## ?? ### # #???????????# ##???? | | ??# ##??##??# # #??????????# # #???? | | ?? ?????????#### # # ##??????????##?##???? | | ? ????????????# ########???????????????????? | | ??#?????????????## ##??????????????????????????? | | ????????????????# ####????????????????????????? | | ????????????????## ## ##???????????????????????? | | ????????????????# #???????????????????????? | | ????????????????## #???????????????????????? | | ????????????????## ##???????????????????????? | | ??????????????### #????????????????????????? | | ??????????????# ##????????????????????????? | | ??????????????## ###???####?###??????????????? | | ???????????????## ##??#### ###=#??????????????? | | ????????????????# #####! %##??????????????? | | ?????????????#### &@& ##???????????????? | | ?????????????# !#=#### #????????????????? | | ?????????????# ###??###????????????????? | | ?????????????## #???????????????????????? | | ??????????????### % #??????????????????????? | | ????????????????## RR### #??????????????????????? | | ?????????????????## #??##??????????????????????? | | ??????????????????# ??????????????????????????? | | ?????????????????? ??????????????????????????? | | ????????# "#?# """ ????????????????? | | ???????? ""#### """" ????????????????? | | ???????? >#?## """ ????????????????? | | ???????? ""##?## ### """ ????????????????? | | ????????# "#?## #?## ##"????????????????? | | ????????# "#?# #?## ###"????????????????? | | ????????#" """#? ### #?# ????????????????? | | ????????########? ## ##?# ????????????????? | | ???????????????# ### #??##????????????????? | | ???????????????# ### #??##????????????????? | | ????????######## #### #### ????????????????? | | ????????# # ### ##??## # # ????????????????? | | ???????? ##????# ????????????????? | | ???????? #?????## ????????????????? | | ????????## # # ##??????##### ##????????????????? | | ?????????#########???????????####????????????????? | +----------------------------------------------------+ Best States ------------- Heat Dissipation 39 Energy Generation 14 Energy Capacity 265 Matter Stores 500 Matter Capacity 500 Sight Range 16 Terrain Scan Density 10 Evasion (%) 55 Item Schematics ----------------- Huge Storage Unit | -10/Materials | Hacked Robot Schematics ------------------ None Fabricated ------------ Nothing Alien Tech Used ----------------- None Achievements -------------- None Challenges ------------ None Game ------ Seed UltimateAntimatterConstruct Manual? 0 Play Time 00:19:24 Cumulative 357.3 hours Start 2024.08.17 @ 01:08:25 End 2024.08.17 @ 01:24:15 Sessions 1 Manual Loads 0 Difficulty Rogue Special Mode None Game No. 498 Rogue 495 Adventurer 2 Explorer 1 Win Type - Total 3 Types 3/0/0/0/0/0/0/0/0 Lore% 43 Gallery% 74 Achievement% 61 Wizard Run 0 Options --------- Layout 1 ASCII 1 Keyboard 1 Movement Vi Keybinds 0 Fullscreen 1 Font 24/Smallcaps Map View 50x40 Zoom Use 0% Tactical HUD 1 Map Filters NONE Filters LOW_CONTRAST(13,24,33) Steam 1 RUN: 01a960d9-174a-4a4c-bbb7-f9f281a10da3